Cogmind - Beta 16.1 @@@ ROGUE MODE // 2026.02.11 @ 03:51:56 Player: H3-MLN Result: Destroyed by GJ-4ZL(R) with Subdweller Laser Performance ------------- Evolutions (0) 0 Regions Visited (3) 600 Robots Destroyed (9) 45 Value Destroyed (198) 198 Prototype IDs (0) 0 Alien Tech Used (0) 0 Bonus (0) 0 TOTAL SCORE: 843 Bonus ------- None Cogmind --------- Core Integrity 0/250 Matter 282/300 Energy 80/100 System Corruption 0% Temperature Cool (15) Movement Treading (320) Ox2 Location -10/Subcaves Parts ------- > --- POWER (1) -------- (None) > --- PROPULSION (2) --- Light Treads Subdweller Monowheel > --- UTILITY (2) ------ High-capacity Storage Unit Seismic Detector > --- WEAPON (2) ------- EM Pulse Gun Makeshift Sword > --- INVENTORY (20) --- Light Treads Compact Wheel Compact Wheel Heat Sink High-capacity Storage Unit High-capacity Matter Pod (200) High-capacity Matter Pod (200) Machine Analyzer Scrap Shield Recalibrator EM Pulse Gun EM Pulse Gun Datajack Mining Laser Shrapnel Trap Peak State ------------ > --- POWER ------------ Light Ion Engine > --- PROPULSION ------- Light Treads Subdweller Monowheel > --- UTILITY ---------- High-capacity Storage Unit Seismic Detector > --- WEAPON ----------- Subdweller Machine Gun Makeshift Sword > --- INVENTORY -------- Light Treads Light Treads Compact Wheel Compact Wheel Heat Sink High-capacity Storage Unit High-capacity Matter Pod High-capacity Matter Pod Machine Analyzer Scrap Shield Recalibrator EM Pulse Gun EM Pulse Gun EM Pulse Gun Datajack Mining Laser Shrapnel Trap [Rating: 14] Favorites ----------- Power Light Ion Engine Engine Light Ion Engine Propulsion Light Treads Treads Light Treads Wheel Compact Wheel Utility Seismic Detector Device Seismic Detector Storage High-capacity Storage Unit Weapon Light Assault Rifle Energy Gun EM Pulse Gun Ballistic Gun Light Assault Rifle Slashing Weapon Makeshift Sword Build | -11 -10 -10 -10 ------- Run | Yrd Mat Min Sub Slots Evolved . | . . . . Power . | . . . . Propulsion . | . . . . Utility . | . . . . Weapon . | . . . . Parts Attached 16 | 6 3 . 7 Power 2 | 1 . . 1 Engine 2 | 1 . . 1 Core . | . . . . Reactor . | . . . . Propulsion 4 | 2 . . 2 Treads 2 | 1 . . 1 Leg . | . . . . Wheel 2 | 1 . . 1 Hover . | . . . . Flight . | . . . . Utility 4 | 1 3 . . Device 2 | . 2 . . Storage 2 | 1 1 . . Processor . | . . . . Hackware . | . . . . Protection . | . . . . Artifact . | . . . . Weapon 6 | 2 . . 4 Energy Gun 2 | . . . 2 Energy Cannon . | . . . . Ballistic Gun 3 | 2 . . 1 Ballistic Cannon . | . . . . Launcher . | . . . . Special Weapon . | . . . . Impact Weapon . | . . . . Slashing Weapon 1 | . . . 1 Piercing Weapon . | . . . . Special Melee Weapon . | . . . . Unidentified Prototypes . | . . . . Parts Lost 5 | . . . 5 Power 2 | . . . 2 Propulsion 1 | . . . 1 Utility . | . . . . Weapon 2 | . . . 2 Highest Loss Streak 4 | . . . 4 To Critical Strikes . | . . . . Average Backups 13 | 2 8 16 16 Power . | . 1 1 . Propulsion 2 | 1 2 3 3 Utility 4 | . 1 5 6 Weapon 4 | . 3 5 5 Tool/Special . | . . . . Unused Backups 13 | . . 1 12 Power . | . . . . Propulsion 2 | . . . 2 Utility 7 | . . 1 6 Weapon 3 | . . . 3 Tool/Special 1 | . . . 1 Average Slot Usage (%) 98 | . 93 100 98 Engine 13 | . 14 14 12 Treads 14 | . 14 14 14 Wheel 14 | . 14 14 14 Device 12 | . 8 14 14 Storage 14 | . 14 14 14 Energy Gun 2 | . . . 13 Ballistic Gun 25 | . 28 28 13 Peak Build Rating 14 | 6 8 9 14 Average Rating 8 | 4 6 8 10 On Entrance 5 | . 6 8 9 Avg Prop Armor Cover (%) 13 | 15 14 14 12 Naked Turns . | . . . . Heaviest Build 50 | 10 46 46 50 Greatest Support 20 | 16 16 16 20 Greatest Overweight (x) 2 | . 2 2 2 Average Overweight (x) 1 | . . 2 2 Largest Inventory Capacity 20 | 8 20 20 20 Average Capacity 17 | 6 12 20 20 Most Carried 20 | 4 14 17 20 Average Carried 14 | 2 8 16 18 Final Capacity 20 | 8 20 20 20 Final Carried 17 | 4 14 17 16 Class Distribution -------------------- 100% | Mutant Dominant Class ---------------- Mutant | -10/Materials Mutant | -10/Mines Mutant | -10/Subcaves Resources | -11 -10 -10 -10 ----------- Run | Yrd Mat Min Sub Matter Collected 399 | 231 125 2 41 Remotely . | . . . . Salvage Created 322 | . 256 . 66 Parts 27 | . 20 . 7 Haulers Intercepted 2 | . 2 . . Recyclers Shooed 1 | . 1 . . Parts Field Recycled . | . . . . Retrieved Matter . | . . . . Parts Self-Destructed 17 | . . . 17 Prevented . | . . . . Parts Restored . | . . . . Kills | -11 -10 -10 -10 ------- Run | Yrd Mat Min Sub Combat Hostiles Destroyed 5 | . 3 . 2 Melee 1 | . . . 1 Guns 4 | . 3 . 1 Classes Destroyed 6 | . 4 . 2 Hauler 2 | . 2 . . Mechanic 1 | . 1 . . Operator 1 | . 1 . . Swarmer 1 | . . . 1 Grunt 3 | . 3 . . Subdweller 1 | . . . 1 Best Kill Streak 2 | . 2 . 1 Combat Bots Only 2 | . 2 . 1 Max Kills in Single Turn 1 | . 1 . 1 Gunslinging . | . . . . Exploded . | . . . . Melee 1 | . . . 1 Uniques/NPCs Destroyed . | . . . . Combat | -11 -10 -10 -10 -------- Run | Yrd Mat Min Sub Hostile Shots Fired 67 | . 16 . 51 Missed 15 | . 5 . 10 Hits 52 | . 11 . 41 Projectile 52 | . 11 . 41 Critical Strikes 2 | . 1 . 1 Damage Taken 851 | . 182 . 669 Core 266 | . 12 . 254 Absorbed by Shields . | . . . . Core Remaining (%) 100 | 100 . . . Volleys Fired 44 | . 33 1 10 Largest 2 | . 2 2 2 Hottest 70 | . 40 40 70 Shots Fired 88 | . 66 2 20 Gun 88 | . 66 2 20 Cannon . | . . . . Launcher . | . . . . Special . | . . . . Kinetic 78 | . 66 2 10 Thermal . | . . . . Explosive . | . . . . Electromagnetic 10 | . . . 10 Robot Hit Streak 12 | . 10 11 12 Robot Miss Streak 4 | . 4 . 1 Penetration Max . | . . . . Secondary Targets . | . . . . Shots Hit Robots 70 | . 46 2 22 Core Hits 25 | . 19 . 6 Critical Kills . | . . . . Critical Parts Destroyed . | . . . . Critical Strikes . | . . . . Melee Attacks 6 | . . . 6 Impact . | . . . . Slashing 6 | . . . 6 Piercing . | . . . . Sneak Attacks . | . . . . Combat Hostiles . | . . . . Follow-up Attacks . | . . . . Damage Inflicted 837 | . 396 14 427 Guns 619 | . 396 14 209 Cannons . | . . . . Explosions . | . . . . Melee 218 | . . . 218 Ramming . | . . . . Kinetic 522 | . 396 14 112 Thermal . | . . . . Explosive . | . . . . Electromagnetic 97 | . . . 97 Impact . | . . . . Slashing 218 | . . . 218 Piercing . | . . . . Highest Corruption . | . . . . Average Corruption . | . . . . Corruption Purged . | . . . . Corruption Blocked . | . . . . Overload Shots . | . . . . Overflow Damage . | . . . . Projectiles . | . . . . Explosions . | . . . . Melee . | . . . . Knockbacks . | . . . . Impact . | . . . . Kinetic . | . . . . Secondary . | . . . . Self-Inflicted Damage . | . . . . Shots . | . . . . Rammed . | . . . . Targets Rammed . | . . . . Kicked . | . . . . Crushed . | . . . . Highest Temperature 27 | . 27 . 2 Average Temperature 14 | . 16 . 2 Received Heat Transfer 228 | . 93 . 135 Siege Activations . | . . . . Martial Activations . | . . . . Shielding Activations . | . . . . Robots Disrupted . | . . . . Combat Hostiles . | . . . . Robots Corrupted . | . . . . Combat Hostiles . | . . . . Parts Fried . | . . . . Impact Corruptions . | . . . . Robots Melted . | . . . . Combat Hostiles . | . . . . Parts Melted . | . . . . Heat Transferred . | . . . . Parts Sabotaged . | . . . . Parts Stolen . | . . . . Parts Stripped . | . . . . Power Chain Reactions . | . . . . Alert | -11 -10 -10 -10 ------- Run | Yrd Mat Min Sub Maximum Alert Level . | . . . . Low Security (%) 100 | 100 100 100 . Level 1 . | . . . . Level 2 . | . . . . Level 3 . | . . . . Level 4 . | . . . . Level 5 . | . . . . High Security . | . . . . Max Security . | . . . . Peak Influence 60 | . 60 9 . Initial 9 | . . 9 . Average 7 | . 26 . . Influence Increases 309 | . 124 . 185 Destroy 0b10 Robot/C 80 | . 60 . 20 Destroy 0b10 Robot/NC 20 | . 20 . . Destroy Leader 24 | . 24 . . Successful Hack 20 | . 20 . . Lose Combat Pursuer 165 | . . . 165 Influence Decreases 264 | . 100 24 140 Entered New Map 15 | . . 15 . Time Decay 199 | . 100 9 90 Lost Part 50 | . . . 50 Squads Dispatched 1 | . 1 . . Investigation . | . . . . Extermination . | . . . . Reinforcement 1 | . 1 . . Assault . | . . . . Garrison . | . . . . Intercept . | . . . . Searches Triggered . | . . . . Construction Impeded . | . . . . Haulers Reinforced . | . . . . Active Scanning Responses . | . . . . Cargo Convoy Interrupts . | . . . . Stealth | -11 -10 -10 -10 --------- Run | Yrd Mat Min Sub Distress Signals . | . . . . Communications Jammed . | . . . . Distress Signals . | . . . . Times Spotted 34 | . 10 . 24 Peak Tracking Total 8 | . 3 . 8 Tactical Retreats 1 | . . . 1 Traps | -11 -10 -10 -10 ------- Run | Yrd Mat Min Sub Traps Triggered 1 | . 1 . . Indirectly . | . . . . Trap Hack Attempts . | . . . . Triggered . | . . . . Disarmed . | . . . . Reprogrammed . | . . . . Reused . | . . . . Traps Extracted . | . . . . Installed . | . . . . Triggered . | . . . . Most Traps Carried 1 | . . . 1 Machines | -11 -10 -10 -10 ---------- Run | Yrd Mat Min Sub Machines Disabled . | . . . . Max in Single Turn . | . . . . Machines Repaired . | . . . . Machines Dismantled . | . . . . Machines Sabotaged . | . . . . Overloaded Fab Kills . | . . . . Hacking | -11 -10 -10 -10 --------- Run | Yrd Mat Min Sub Machines Accessed 2 | . 2 . . Terminals 2 | . 2 . . Fabricators . | . . . . Repair Stations . | . . . . Recycling Units . | . . . . Scanalyzers . | . . . . Garrison Access . | . . . . Total Hacks 3 | . 3 . . Successful 3 | . 3 . . Failed . | . . . . Catastrophic . | . . . . Database Lockouts . | . . . . Manual 2 | . 2 . . Terminals 3 | . 3 . . Fabricators . | . . . . Repair Stations . | . . . . Recycling Units . | . . . . Scanalyzers . | . . . . Garrison Access . | . . . . Terminal Hacks 3 | . 3 . . Part Schematic 1 | . 1 . . Robot Analysis 1 | . 1 . . Branch Access Points 1 | . 1 . . Fabricator Hacks . | . . . . Repair Station Hacks . | . . . . Recycling Unit Hacks . | . . . . Scanalyzer . | . . . . Garrison Access Hacks . | . . . . Unauthorized Hacks . | . . . . Terminals . | . . . . Fabricators . | . . . . Repair Stations . | . . . . Recycling Units . | . . . . Scanalyzers . | . . . . Garrison Access . | . . . . Data Cores Recovered . | . . . . Used . | . . . . Hacking Detections 2 | . 2 . . Full Trace Events . | . . . . Feedback Events . | . . . . Feedback Blocked . | . . . . Robot Schematics Acquired . | . . . . Robots Built . | . . . . Authchips . | . . . . Time . | . . . . Total Robot Build Rating . | . . . . Part Schematics Acquired 1 | . 1 . . Parts Built . | . . . . Authchips . | . . . . Time . | . . . . Total Part Build Rating . | . . . . Part Studies Acquired . | . . . . Parts Repaired . | . . . . Time . | . . . . Parts Recycled . | . . . . Recycled Matter . | . . . . Retrieved Matter . | . . . . Retrieved Components . | . . . . Parts Scanalyzed . | . . . . Part Schematics Acquired . | . . . . Parts Damaged . | . . . . Bothacking | -11 -10 -10 -10 ------------ Run | Yrd Mat Min Sub Used RIF Installer . | . . . . Robots Hacked . | . . . . Non-combat . | . . . . Combat . | . . . . Robot Hacks Applied . | . . . . Relay Couplers Released . | . . . . Fabnet Peak Effective % . | . . . . Robots Rewired . | . . . . Allies Hacked . | . . . . Hacks Repelled . | . . . . Allies | -11 -10 -10 -10 -------- Run | Yrd Mat Min Sub Total Allies . | . . . . Largest Group . | . . . . Highest-Rated Group . | . . . . Highest-Rated Ally . | . . . . Total Orders . | . . . . Ally Attacks . | . . . . Total Damage . | . . . . Kills . | . . . . Allies Corrupted . | . . . . Allies Melted . | . . . . Intel | -11 -10 -10 -10 ------- Run | Yrd Mat Min Sub Active Infowar (turns) 906 | . 106 604 196 Seismic 906 | . 106 604 196 Robot Analysis Total 1 | . 1 . . Derelict Logs Recovered 2 | . . 2 . Drone Launches . | . . . . Drone Recoveries . | . . . . Exploration | -11 -10 -10 -10 ------------- Run | Yrd Mat Min Sub Turns Passed 1100 | 46 254 604 196 Spaces Moved 703 | 35 124 437 107 Core 3 | 3 . . . Treads . | . . . . Legs . | . . . . Wheels 700 | 32 124 437 107 Hover . | . . . . Flight . | . . . . Fastest Speed 50 | 50 100 130 130 Average Speed 124 | 95 108 130 130 Slowest Speed 130 | 100 130 130 130 Overloaded Moves . | . . . . Propulsion Burnouts . | . . . . Robots Hopped . | . . . . Potential Cave-ins . | . . . . Cave-ins Triggered . | . . . . Exploration Rate (%) 31 | 4 28 85 7 Regions Visited 3 Branch Regions 2 Pre-discovered Areas 1 | . . 1 . Known Exits Taken 1 | . 1 . . Unknown Exits Taken 2 | 1 . 1 . Scrap Searched 3 | . . 1 2 Spaces Dug . | . . . . Terrain Destroyed . | . . . . Melee . | . . . . Projectile . | . . . . AOE . | . . . . Terrain Rammed . | . . . . Walls Destroyed . | . . . . Machines Disabled . | . . . . Actions | -11 -10 -10 -10 --------- Run | Yrd Mat Min Sub Total 844 | 44 190 472 138 Wait 53 | . 20 30 3 Move 700 | 34 123 436 107 Hop . | . . . . Pick Up 21 | 4 10 4 3 Fast Attach 7 | 6 1 . . Attach 4 | . . . 4 Detach . | . . . . Swap 5 | . 2 . 3 Drop 4 | . 1 1 2 Fire 44 | . 33 1 10 Melee 6 | . . . 6 Ram . | . . . . Kick . | . . . . Crush . | . . . . Escape Stasis . | . . . . Rewire . | . . . . Trap . | . . . . Miscellaneous . | . . . . Route ------- -11/Scrapyard -10/Materials -10/Mines (discovered 3 exits: [*Mat x2] / [*Sub]) -10/Subcaves (discovered 1 exit: *Rec) History --------- Turn | Location | Event 19 | -11/Scrapyard | Discovered new exit (range 15) 47 | -11/Scrapyard | Entered Materials 68 | -10/Materials | Identified exit to Mines 301 | -10/Materials | Entered Mines 307 | -10/Mines | Build established: Mutant 312 | -10/Mines | Met a Derelict bent on vengeance 384 | -10/Mines | Discovered new exit (range 5) 484 | -10/Mines | Learned location of Zion (-6) 680 | -10/Mines | A weapon hastily lodged in a ceiling crevice suddenly fell to the ground 755 | -10/Mines | Discovered new exit (range 13) 781 | -10/Mines | Discovered new exit (range 5) 905 | -10/Mines | Entered Subcaves 906 | -10/Subcaves | Approached by a straggling Scientist 906 | -10/Subcaves | Identified exit to Recycling 1061 | -10/Subcaves | Ambushed by swarm of Subdwellers 1094 | -10/Subcaves | Core integrity fell below 50% 1101 | -10/Subcaves | Core integrity fell below 20% 1101 | -10/Subcaves | Destroyed by GJ-4ZL(R) with Subdweller Laser Last Messages --------------- A mess of Twisted Machinery falls from the cavern ceiling. 0J-OFP(R) comes tumbling into view. 01062_ HQ-EQE(h): "The Subs are coming!" 01069_ HQ-EQE(h) destroyed. 01071_ Z9-Q5N(g): "Sorry we're late! Had another grouchy Sub to deal with. Who's the new fellow?" 01074_ 0J-OFP(R) suffers critical hit (Burn). 01074_ 0J-OFP(R) destroyed. 01078_ OX-XYF(R) affixes Scrap Shield Fragment to Scrap Shield. 01081_ 5D-0OF(g) destroyed. 01082_ S1-U33(R) destroyed. 01084_ CL-QHY(g) destroyed. 01085_ EM Pulse Gun destroyed. 01089_ Lgt. Ion Engine destroyed. 01090_ Lgt. Treads destroyed. 01091_ 97-T31(R) affixes Scrap Shield Fragment to Scrap Shield. 01092_ 97-T31(R) destroyed. 01094_ Sub. Machine Gun destroyed. 01097_ Z9-Q5N(g) destroyed. 01098_ GJ-4ZL(R) affixes Scrap Shield Fragment to Scrap Shield. Map ----- +----------------------------------------------------+ | ?????????????????????????????????????????????????? | | ?????????????????????????????????????????????????? | | ?????????????????????????????????????????????????? | | ?????????????????????????????????????????????????? | | ?????????????????????????????????????????????????? | | ?????????????????????????????????????????????????? | | ?????????????????????????????????????????????????? | | ?????????????????????????????????????????????????? | | ?????????????????????????????????????????????????? | | ?????????????????????????????????????????????????? | | ?????????????????????????????????????????????????? | | ?????????????????????????????????????????????????? | | ?????????????????????????????????????????????????? | | ?????????????????????????????????????????????????? | | ?????????????????????????????????????????????????? | | ?????????????????????????????????????????????????? | | ?????????????????????????????###?????????????????? | | ?????????????????????????????""#?????????????????? | | ?????????????????????????????" #?????????????????? | | ????????????????????????????? R####??????????????? | | ???????????????????????????? #??????????????? | | ????????????????????????????! #??????????????? | | ???????????????????#???????#%! #??????????????? | | ??????????????????## ???###%&[ #??????????????? | | ??????????????????# ###%RR%[ #??????????????? | | ??????????????????# *[@=R]= ##??????????##### | | ??????????????????# !!!R### #????????#### # | | ??????????????????## [=###??###????????# | | ??????????????????## ##????????????## ### | | ??????????????????# ##???????????# #?? | | ??????????????????# ## ##########?## #?? | | ??????????????????# #?# ## ## # # ## #?? | | ??????????????????##??# c #%##?? | | ?????????????????????# ## # #??? | | ????????????????????# ### ## ## ## #??? | | ????????????????????# #?## ## ###### # #??? | | ????????????????????# ??#####% ##???# # ##??? | | ????????????????????# ??????# ###### #???? | | ????????????????????# ??????# # ## ###???? | | ????????????????????## ??????## % ##?????? | | ?????????????????????## ???????## %#%#%#??????? | | ??????????????????????## % ????????##### # #?????? | | ???????????????????????# ?????????????# ## #???? | | ????????????????????????#??????????????#[%##%#???? | | ???????????????????????????????????????#[ ## #???? | | ??????????????????????????????????????# ##%%##???? | | ?????????????????????????????????????# #?# ##????? | | ????????????????????????????????????# #?# ##?????? | | ????????????????????????????????????# ?# #???????? | | ????????????????????????????????????#? #????????? | +----------------------------------------------------+ Best States ------------- Heat Dissipation 35 Energy Generation 10 Energy Capacity 125 Matter Stores 300 Matter Capacity 300 Sight Range 16 Terrain Scan Density 10 Evasion (%) 40 Recoil Reduction 1 Item Schematics ----------------- Huge Storage Unit | -10/Materials | Hacked Robot Schematics ------------------ None Fabricated ------------ Nothing Repaired ---------- Nothing Studied --------- None Alien Tech Used ----------------- None Achievements -------------- None Challenges ------------ None Game ------ Seed SubatomicRecyclingSpear Manual? 0 Play Time 00:11:10 Cumulative 1360.6 hours Start 2026.02.11 @ 03:29:59 End 2026.02.11 @ 03:51:56 Sessions 1 Manual Loads 0 Difficulty Rogue Special Mode None Game No. 453 Rogue 448 Adventurer 4 Explorer 1 Win Type - Total 35 Types 16/5/2/2/1/2/2/1/2/2 Lore% 97 Gallery% 93 Achievement% 86 Wizard Run 0 Options --------- Layout 0 ASCII 0 Keyboard 0 Movement Numpad Keybinds 0 Fullscreen 2 Font 18/SmallcapsGlow Map View 76x50 Zoom Use 0% Tactical HUD 1 Map Filters NONE Filters NONE Steam 1 RUN: 9a96e44b-cf5a-45c1-a7f0-c61a8a3b0548